fUSD/lending_fUSD_20250708
["ID","MTS","AMOUNT","RATE_DAILY","PERIOD"]
[370308986,1751946641272,-460.0,0.00030136,7]
[370308988,1751946641282,-500.0,0.00030136,7]
[370308989,1751946641291,-460.0,0.00030136,7]
[370308991,1751946641301,-150.0,0.00030136,2]
[370308993,1751946641310,-204.32057661,0.00030136,7]
[370308995,1751946641319,-569.0,0.00030136,7]
[370308997,1751946641329,-749.0,0.00030136,7]
[370308999,1751946641339,-460.0,0.00030136,7]
[370309001,1751946641348,-591.28,0.00030136,7]
[370309002,1751946641357,-157.86554131,0.00030136,7]
[370309004,1751946641367,-560.17114848,0.00030136,7]
[370309006,1751946641377,-460.0,0.00030136,7]
[370309008,1751946641386,-460.0,0.00030136,7]
[370309010,1751946641397,-460.0,0.00030136,7]
[370309012,1751946641406,-911.23,0.00030136,7]
[370309014,1751946641415,-460.0,0.00030136,7]
[370309016,1751946641425,-460.0,0.00030136,7]
[370309018,1751946641435,-778.29,0.00030136,7]
[370309020,1751946641445,-495.97360323,0.00030136,7]
[370309022,1751946641454,-460.0,0.00030136,7]
[370309024,1751946641464,-460.0,0.00030136,7]
[370309026,1751946641473,-526.33790647,0.00030136,7]
[370309027,1751946641483,-460.0,0.00030136,7]
[370309028,1751946641493,-460.0,0.00030136,7]
[370309029,1751946641503,-460.0,0.00030136,7]
[370309030,1751946641514,-460.0,0.00030136,7]
[370309031,1751946641523,-490.0,0.00030136,7]
[370309032,1751946641533,-490.0,0.00030136,7]
[370309033,1751946641543,-460.0,0.00030136,7]
[370309034,1751946641553,-490.0,0.00030136,7]
[370309041,1751946641563,-690.57,0.00030136,7]
[370309047,1751946641791,-704.99,0.00030136,7]
[370309049,1751946641801,-490.0,0.00030136,7]
[370309051,1751946641811,-490.78,0.00030136,7]
[370309053,1751946641820,-704.28,0.00030136,7]
[370309055,1751946641830,-460.0,0.00030136,7]
[370309057,1751946641839,-376.041512,0.00030136,7]
[370309059,1751946641849,-492.39,0.00030136,7]
[370309061,1751946641858,-460.0,0.00030136,7]
[370309063,1751946641867,-474.29,0.00030136,7]
[370309065,1751946641877,-460.0,0.00030136,7]
[370309067,1751946641886,-490.0,0.00030136,7]
[370309069,1751946641896,-460.0,0.00030136,7]
[370309071,1751946641905,-492.25461466,0.00030136,7]
[370309073,1751946641914,-496.57528205,0.00030136,7]
[370309075,1751946641923,-460.0,0.00030136,7]
[370309077,1751946641933,-586.33892425,0.00030136,7]
[370309079,1751946641942,-460.0,0.00030136,7]
[370309081,1751946641951,-460.0,0.00030136,7]
[370309083,1751946641960,-460.0,0.00030136,7]
[370309085,1751946641969,-490.0,0.00030136,7]
[370309087,1751946641979,-460.0,0.00030136,7]
[370309089,1751946641988,-442.0728356,0.00030136,7]
[370309091,1751946641999,-460.0,0.00030136,7]
[370309093,1751946642008,-460.0,0.00030136,7]
[370309095,1751946642018,-1098.44,0.00030136,7]
[370309097,1751946642027,-491.60598216,0.00030136,7]
[370309099,1751946642036,-460.0,0.00030136,7]
[370309101,1751946642046,-460.0,0.00030136,7]
[370309103,1751946642055,-460.0,0.00030136,7]
[370309105,1751946642065,-491.04229233,0.00030136,7]
[370309107,1751946642075,-1115.99,0.00030136,7]
[370309109,1751946642084,-504.30980924,0.00030136,7]
[370309111,1751946642094,-460.0,0.00030136,7]
[370309113,1751946642103,-515.2,0.00030136,7]
[370309115,1751946642113,-490.0,0.00030136,7]
[370309118,1751946642124,-460.0,0.00030136,7]
[370309120,1751946642134,-460.0,0.00030136,7]
[370309122,1751946642143,-150.0,0.00030136,2]
[370309124,1751946642153,-490.0,0.00030136,7]
[370309126,1751946642162,-460.0,0.00030136,7]
[370309128,1751946642171,-525.18821458,0.00030136,7]
[370309130,1751946642180,-2608.64,0.00030136,7]
[370309132,1751946642190,-1052.0,0.00030136,7]
[370309134,1751946642199,-490.0,0.00030136,7]
[370309136,1751946642210,-460.0,0.00030136,7]
[370309137,1751946642220,-460.0,0.00030136,7]
[370309140,1751946642230,-492.4981461,0.00030136,7]
[370309142,1751946642240,-491.11711664,0.00030136,7]
[370309144,1751946642249,-460.0,0.00030136,7]
[370309146,1751946642259,-460.0,0.00030136,7]
[370309148,1751946642268,-490.0,0.00030136,7]
[370309150,1751946642278,-492.33713637,0.00030136,7]
[370309152,1751946642288,-460.0,0.00030136,7]
[370309154,1751946642298,-460.0,0.00030136,7]
[370309156,1751946642307,-460.0,0.00030136,7]
[370309158,1751946642317,-816.46,0.00030136,7]
[370309160,1751946642326,-460.0,0.00030136,7]
[370309162,1751946642336,-150.0,0.00030136,7]
[370309164,1751946642345,-490.0,0.00030136,7]
[370309166,1751946642354,-460.0,0.00030136,7]
[370309168,1751946642364,-491.57105127,0.00030136,7]
[370309170,1751946642374,-500.0,0.00030136,2]
[370309172,1751946642383,-460.0,0.00030136,7]
[370309174,1751946642393,-500.0,0.00030136,60]
[370309176,1751946642402,-490.0,0.00030136,7]
[370309178,1751946642411,-490.0,0.00030136,7]
[370309180,1751946642421,-460.0,0.00030136,7]
[370309182,1751946642430,-490.0,0.00030136,7]
[370309184,1751946642440,-460.0,0.00030136,7]
[370309186,1751946642449,-460.0,0.00030136,7]
[370309188,1751946642459,-460.0,0.00030136,7]
[370309190,1751946642468,-460.0,0.00030136,7]
[370309192,1751946642478,-824.26,0.00030136,7]
[370309194,1751946642487,-460.0,0.00030136,7]
[370309196,1751946642497,-460.0,0.00030136,7]
[370309198,1751946642507,-490.0,0.00030136,7]
[370309200,1751946642517,-490.0,0.00030136,7]
[370309202,1751946642526,-150.0,0.00030136,7]
[370309204,1751946642536,-523.53,0.00030136,7]
[370309206,1751946642546,-2637.37,0.00030136,7]
[370309208,1751946642556,-460.0,0.00030136,7]
[370309210,1751946642565,-460.0,0.00030136,7]
[370309212,1751946642575,-490.0,0.00030136,7]
[370309214,1751946642584,-260.59447401,0.00030136,7]
[370309215,1751946642593,-490.0,0.00030136,7]
[370309217,1751946642603,-688.22,0.00030136,7]
[370309219,1751946642612,-630.18,0.00030136,7]
[370309221,1751946642622,-490.0,0.00030136,7]
[370309223,1751946642631,-460.0,0.00030136,7]
[370309225,1751946642640,-490.0,0.00030136,7]
[370309227,1751946642653,-491.54623458,0.00030136,7]
[370309229,1751946642662,-3499.70885466,0.00030136,7]
[370309238,1751946642716,-10770.83114534,0.00030136,7]
[370309241,1751946642726,-490.0,0.00030136,7]
[370309244,1751946642736,-490.0,0.00030136,7]
[370309247,1751946642746,-1119.52,0.00030136,7]
[370309250,1751946642755,-493.45602856,0.00030136,7]
[370309253,1751946642764,-460.0,0.00030136,7]
[370309256,1751946642774,-460.0,0.00030136,7]
[370309259,1751946642784,-490.0,0.00030136,7]
[370309262,1751946642793,-490.0,0.00030136,7]
[370309265,1751946642803,-460.0,0.00030136,7]
[370309269,1751946642813,-587.23047817,0.00030136,7]
[370309273,1751946642822,-460.0,0.00030136,7]
[370309277,1751946642832,-490.0,0.00030136,7]
[370309281,1751946642841,-569.1,0.00030136,7]
[370309286,1751946642851,-496.93746942,0.00030136,7]
[370309289,1751946642860,-460.0,0.00030136,7]
[370309293,1751946642870,-460.0,0.00030136,7]
[370309297,1751946642880,-460.0,0.00030136,7]
[370309300,1751946642889,-483.94514705,0.00030136,7]
[370309303,1751946642902,-311.47485295,0.00030136,7]
[370309306,1751946642912,-490.0,0.00030136,7]
[370309309,1751946642921,-460.0,0.00030136,7]
[370309312,1751946642931,-348.16321198,0.00030136,7]
[370309314,1751946642947,-141.83678802,0.00030136,7]
[370309316,1751946642956,-108.16321198,0.00030136,60]
[370309319,1751946642968,-541.83678802,0.00030136,60]
[370309321,1751946642977,-58.16321198,0.00030136,7]
[370309325,1751946643010,-269.53368873,0.00019589,2]
[370309327,1751946643021,-431.83678802,0.00030136,7]
[370309329,1751946643031,-460.0,0.00030136,7]
[370309331,1751946643040,-460.0,0.00030136,7]
[370309333,1751946643049,-460.0,0.00030136,7]
[370309335,1751946643058,-490.0,0.00030136,7]
[370309337,1751946643068,-490.0,0.00030136,7]
[370309339,1751946643077,-490.0,0.00030136,7]
[370309341,1751946643086,-460.0,0.00030136,7]
[370309343,1751946643096,-885.9,0.00030136,7]
[370309344,1751946643106,-490.0,0.00030136,7]
[370309346,1751946643116,-490.0,0.00030136,7]
[370309349,1751946643126,-1226.26,0.00030136,7]
[370309351,1751946643136,-460.0,0.00030136,7]
[370309353,1751946643145,-460.0,0.00030136,7]
[370309355,1751946643155,-490.0,0.00030136,7]
[370309357,1751946643164,-469.58074142,0.00030136,7]
[370309359,1751946643175,-490.0,0.00030136,7]
[370309361,1751946643184,-490.0,0.00030136,7]
[370309363,1751946643193,-1709.78,0.00030136,7]
[370309365,1751946643203,-729.02,0.00030136,7]
[370309367,1751946643212,-460.0,0.00030136,7]
[370309369,1751946643221,-490.0,0.00030136,7]
[370309371,1751946643231,-490.0,0.00030136,7]
[370309373,1751946643241,-343.67992392,0.00030136,7]
[370309375,1751946643250,-495.41638434,0.00030136,7]
[370309377,1751946643259,-460.0,0.00030136,7]
[370309379,1751946643268,-460.0,0.00030136,7]
[370309381,1751946643278,-460.0,0.00030136,7]
[370309383,1751946643287,-460.0,0.00030136,7]
[370309385,1751946643296,-408.22688233,0.00030136,7]
[370309387,1751946643306,-460.0,0.00030136,7]
[370309389,1751946643315,-460.0,0.00030136,7]
[370309391,1751946643325,-490.0,0.00030136,7]
[370309393,1751946643334,-490.0,0.00030136,7]
[370309395,1751946643344,-494.31974195,0.00030136,7]
[370309397,1751946643354,-460.0,0.00030136,7]
[370309399,1751946643363,-490.0,0.00030136,7]
[370309401,1751946643373,-830.56,0.00030136,7]
[370309403,1751946643382,-1925.21,0.00030136,7]
[370309405,1751946643392,-1620.67,0.00030136,7]
[370309407,1751946643401,-460.0,0.00030136,7]
[370309408,1751946643411,-490.0,0.00030136,7]
[370309410,1751946643421,-460.0,0.00030136,7]
[370309412,1751946643431,-1074.27,0.00030136,7]
[370309415,1751946643441,-490.0,0.00030136,7]
[370309417,1751946643450,-490.0,0.00030136,7]
[370309419,1751946643460,-2633.43647827,0.00030136,7]
[370309421,1751946643470,-500.0,0.00030136,7]
[370309423,1751946643479,-460.0,0.00030136,7]
[370309425,1751946643488,-500.0,0.00030136,7]
[370309427,1751946643497,-163.40419252,0.00030136,7]
[370309429,1751946643506,-460.0,0.00030136,7]
[370309430,1751946643515,-1246.46,0.00030136,7]
[370309433,1751946643525,-585.99,0.00030136,7]
[370309435,1751946643534,-490.0,0.00030136,7]
[370309436,1751946643544,-460.0,0.00030136,7]
[370309439,1751946643553,-402.19170973,0.00030136,7]
[370309440,1751946643563,-469.5,0.00030136,7]
[370309442,1751946643573,-493.65703893,0.00030136,7]
[370309443,1751946643582,-491.38395512,0.00030136,7]
[370309444,1751946643592,-478.72,0.00030136,7]
[370309445,1751946643601,-2079.55,0.00030136,7]
[370309446,1751946643610,-1000.0,0.00030136,7]
[370309447,1751946643620,-736.28,0.00030136,7]
[370309448,1751946643630,-460.0,0.00030136,7]
[370309449,1751946643639,-460.0,0.00030136,7]
[370309450,1751946643652,-460.0,0.00030136,7]
[370309451,1751946643661,-460.0,0.00030136,7]
[370309452,1751946643671,-490.0,0.00030136,7]
[370309454,1751946643680,-500.0,0.00030136,7]
[370309456,1751946643690,-500.0,0.00030136,7]
[370309458,1751946643699,-300.0,0.00030136,2]
[370309459,1751946643709,-490.0,0.00030136,7]
[370309460,1751946643718,-460.0,0.00030136,7]
[370309461,1751946643727,-517.94574657,0.00030136,7]
[370309462,1751946643737,-460.0,0.00030136,7]
[370309463,1751946643746,-490.0,0.00030136,7]
[370309464,1751946643756,-460.0,0.00030136,7]
[370309465,1751946643765,-474.04040151,0.00030136,7]
[370309466,1751946643775,-468.1757931,0.00030136,7]
[370309467,1751946643785,-490.0,0.00030136,7]
[370309468,1751946643794,-460.0,0.00030136,7]
[370309469,1751946643804,-491.45074558,0.00030136,7]
[370309470,1751946643814,-490.0,0.00030136,7]
[370309471,1751946643823,-460.0,0.00030136,7]
[370309472,1751946643833,-719.41,0.00030136,7]
[370309473,1751946643843,-562.67,0.00030136,7]
[370309474,1751946643853,-460.0,0.00030136,7]
[370309475,1751946643863,-1036.14,0.00030136,7]
[370309476,1751946643873,-460.0,0.00030136,7]
[370309477,1751946643883,-460.0,0.00030136,7]
[370309478,1751946643893,-491.81496586,0.00030136,7]
[370309479,1751946643902,-190.69293147,0.00030136,7]
[370309480,1751946643912,-538.27,0.00030136,7]
[370309481,1751946643923,-460.0,0.00030136,7]
[370309482,1751946643934,-460.0,0.00030136,7]
[370309483,1751946643944,-460.0,0.00030136,7]
[370309484,1751946643955,-460.0,0.00030136,7]
[370309485,1751946643965,-490.0,0.00030136,7]
[370309486,1751946643975,-491.66342568,0.00030136,7]
[370309487,1751946643985,-497.23616651,0.00030136,7]
[370309488,1751946643994,-460.0,0.00030136,7]
[370309489,1751946644003,-460.0,0.00030136,7]
[370309490,1751946644013,-460.0,0.00030136,7]
[370309491,1751946644023,-460.0,0.00030136,7]
[370309492,1751946644033,-490.0,0.00030136,7]
[370309493,1751946644044,-460.0,0.00030136,7]
[370309494,1751946644053,-490.0,0.00030136,7]
[370309495,1751946644062,-490.0,0.00030136,7]
[370309496,1751946644071,-460.0,0.00030136,7]
[370309497,1751946644082,-460.0,0.00030136,7]
[370309498,1751946644092,-460.0,0.00030136,7]
[370309499,1751946644156,-602.62,0.00030136,7]
[370309500,1751946644167,-490.0,0.00030136,7]
[370309501,1751946644176,-494.30616755,0.00030136,7]
[370309502,1751946644187,-460.0,0.00030136,7]
[370309503,1751946644197,-460.0,0.00030136,7]
[370309504,1751946644207,-494.26,0.00030136,7]
[370309505,1751946644216,-460.0,0.00030136,7]
[370309506,1751946644227,-1164.56,0.00030136,7]
[370309507,1751946644236,-493.58571269,0.00030136,7]
[370309508,1751946644245,-460.0,0.00030136,7]
[370309509,1751946644255,-493.44210565,0.00030136,7]
[370309510,1751946644264,-490.0,0.00030136,7]
[370309511,1751946644273,-460.0,0.00030136,7]
[370309512,1751946644283,-460.0,0.00030136,7]
[370309513,1751946644294,-460.0,0.00030136,7]
[370309514,1751946644303,-2400.38,0.00030136,7]
[370309515,1751946644313,-1567.07,0.00030136,7]
[370309516,1751946644325,-490.0,0.00030136,7]
[370309517,1751946644334,-460.0,0.00030136,7]
[370309518,1751946644345,-490.0,0.00030136,7]
[370309519,1751946644354,-460.0,0.00030136,7]
[370309520,1751946644364,-460.0,0.00030136,7]
[370309521,1751946644374,-460.0,0.00030136,7]
[370309522,1751946644384,-460.0,0.00030136,7]
[370309523,1751946644395,-490.0,0.00030136,7]
[370309524,1751946644405,-490.0,0.00030136,7]
[370309525,1751946644414,-460.0,0.00030136,7]
[370309526,1751946644424,-460.0,0.00030136,7]
[370309527,1751946644435,-507.7,0.00030136,7]
[370309528,1751946644444,-490.0,0.00030136,7]
[370309529,1751946644454,-460.0,0.00030136,7]
[370309530,1751946644464,-460.0,0.00030136,7]
[370309531,1751946644474,-460.0,0.00030136,7]
[370309532,1751946644486,-976.68,0.00030136,7]
[370309533,1751946644495,-332.83732254,0.00030136,7]
[370309534,1751946644507,-460.0,0.00030136,7]
[370309535,1751946644518,-460.0,0.00030136,7]
[370309536,1751946644528,-460.0,0.00030136,7]
[370309537,1751946644538,-490.0,0.00030136,7]
[370309538,1751946644549,-460.0,0.00030136,7]
[370309539,1751946644559,-460.0,0.00030136,7]
[370309540,1751946644568,-460.0,0.00030136,7]
[370309541,1751946644577,-460.0,0.00030136,7]
[370309542,1751946644587,-460.0,0.00030136,7]
[370309543,1751946644596,-460.0,0.00030136,7]
[370309544,1751946644605,-460.0,0.00030136,7]
[370309545,1751946644614,-493.82396907,0.00030136,7]
[370309546,1751946644623,-460.0,0.00030136,7]
[370309547,1751946644633,-490.0,0.00030136,7]
[370309548,1751946644642,-460.0,0.00030136,7]
[370309549,1751946644655,-681.48,0.00030136,7]
[370309550,1751946644664,-460.0,0.00030136,7]
[370309551,1751946644673,-754.04,0.00030136,7]
[370309552,1751946644683,-460.0,0.00030136,7]
[370309553,1751946644693,-460.0,0.00030136,7]
[370309554,1751946644702,-460.0,0.00030136,7]
[370309555,1751946644711,-490.0,0.00030136,7]
[370309556,1751946644721,-460.0,0.00030136,7]
[370309557,1751946644732,-490.0,0.00030136,7]
[370309558,1751946644741,-460.0,0.00030136,7]
[370309559,1751946644750,-460.0,0.00030136,7]
[370309560,1751946644759,-460.0,0.00030136,7]
[370309561,1751946644769,-460.0,0.00030136,7]
[370309562,1751946644778,-460.0,0.00030136,7]
[370309563,1751946644787,-460.0,0.00030136,7]
[370309564,1751946644796,-210.34477682,0.00030136,7]
[370309565,1751946644806,-486.7780146,0.00030136,7]
[370309566,1751946644815,-490.0,0.00030136,7]
[370309567,1751946644824,-460.0,0.00030136,7]
[370309568,1751946644833,-460.0,0.00030136,7]
[370309569,1751946644843,-460.0,0.00030136,7]
[370309570,1751946644853,-460.0,0.00030136,7]
[370309571,1751946644863,-490.0,0.00030136,7]
[370309572,1751946644873,-460.0,0.00030136,7]
[370309573,1751946644883,-460.0,0.00030136,7]
[370309574,1751946644892,-490.0,0.00030136,7]
[370309575,1751946644902,-422.63565255,0.00030136,7]
[370309576,1751946644911,-460.0,0.00030136,7]
[370309577,1751946644921,-490.0,0.00030136,7]
[370309578,1751946644930,-619.0,0.00030136,7]
[370309579,1751946644940,-460.0,0.00030136,7]
[370309580,1751946644949,-460.0,0.00030136,7]
[370309581,1751946644959,-477.5,0.00030136,7]
[370309582,1751946644968,-490.0,0.00030136,7]
[370309583,1751946644978,-660.14,0.00030136,7]
[370309584,1751946644987,-676.32,0.00030136,7]
[370309585,1751946644996,-497.04486526,0.00030136,7]
[370309586,1751946645007,-460.0,0.00030136,7]
[370309587,1751946645016,-460.0,0.00030136,7]
[370309588,1751946645026,-460.0,0.00030136,7]
[370309589,1751946645036,-1367.1,0.00030136,7]
[370309590,1751946645047,-460.0,0.00030136,7]
[370309591,1751946645056,-490.0,0.00030136,7]
[370309592,1751946645066,-490.0,0.00030136,7]
[370309593,1751946645076,-460.0,0.00030136,7]
[370309594,1751946645086,-460.0,0.00030136,7]
[370309595,1751946645098,-460.0,0.00030136,7]
[370309596,1751946645110,-460.0,0.00030136,7]
[370309597,1751946645120,-740.36,0.00030136,7]
[370309598,1751946645130,-460.0,0.00030136,7]
[370309599,1751946645140,-490.0,0.00030136,7]
[370309600,1751946645150,-460.0,0.00030136,7]
[370309601,1751946645160,-460.0,0.00030136,7]
[370309602,1751946645171,-492.87567705,0.00030136,7]
[370309603,1751946645181,-460.0,0.00030136,7]
[370309604,1751946645190,-490.0,0.00030136,7]
[370309605,1751946645200,-907.14,0.00030136,7]
[370309606,1751946645210,-460.0,0.00030136,7]
[370309607,1751946645221,-490.0,0.00030136,7]
[370309608,1751946645231,-460.0,0.00030136,7]
[370309609,1751946645241,-460.0,0.00030136,7]
[370309610,1751946645250,-460.0,0.00030136,7]
[370309611,1751946645260,-645.35,0.00030136,7]
[370309612,1751946645271,-590.05,0.00030136,7]
[370309613,1751946645281,-460.0,0.00030136,7]
[370309614,1751946645291,-460.0,0.00030136,7]
[370309615,1751946645301,-460.0,0.00030136,7]
[370309616,1751946645311,-522.84,0.00030136,7]
[370309617,1751946645321,-460.0,0.00030136,7]
[370309618,1751946645330,-460.0,0.00030136,7]
[370309619,1751946645340,-460.0,0.00030136,7]
[370309620,1751946645349,-460.0,0.00030136,7]
[370309621,1751946645359,-270.0,0.00030136,7]
[370309622,1751946645369,-490.0,0.00030136,7]
[370309623,1751946645379,-460.0,0.00030136,7]
[370309624,1751946645389,-460.0,0.00030136,7]
[370309625,1751946645399,-491.44273881,0.00030136,7]
[370309626,1751946645409,-490.0,0.00030136,7]
[370309627,1751946645419,-460.0,0.00030136,7]
[370309628,1751946645428,-1470.72,0.00030136,7]
[370309629,1751946645437,-490.0,0.00030136,7]
[370309630,1751946645447,-493.69941132,0.00030136,7]
[370309631,1751946645456,-1389.52,0.00030136,7]
[370309632,1751946645465,-767.3,0.00030136,7]
[370309633,1751946645474,-493.28484991,0.00030136,7]
[370309634,1751946645483,-460.0,0.00030136,7]
[370309635,1751946645493,-460.0,0.00030136,7]
[370309636,1751946645502,-460.0,0.00030136,7]
[370309637,1751946645511,-633.74,0.00030136,7]
[370309638,1751946645521,-491.07177636,0.00030136,7]
[370309639,1751946645530,-957.4,0.00030136,7]
[370309640,1751946645542,-460.0,0.00030136,7]
[370309641,1751946645551,-490.0,0.00030136,7]
[370309642,1751946645560,-1626.56,0.00030136,7]
[370309643,1751946645572,-492.72379934,0.00030136,7]
[370309644,1751946645582,-460.0,0.00030136,7]
[370309645,1751946645592,-460.0,0.00030136,7]
[370309646,1751946645602,-460.0,0.00030136,7]
[370309647,1751946645611,-490.0,0.00030136,7]
[370309648,1751946645620,-607.44,0.00030136,7]
[370309649,1751946645630,-460.0,0.00030136,7]
[370309650,1751946645641,-613.04,0.00030136,7]
[370309651,1751946645655,-460.0,0.00030136,7]
[370309652,1751946645665,-460.0,0.00030136,7]
[370309653,1751946645675,-490.0,0.00030136,7]
[370309654,1751946645686,-460.0,0.00030136,7]
[370309656,1751946645695,-460.0,0.00030136,7]
[370309657,1751946645705,-460.0,0.00030136,7]
[370309658,1751946645715,-460.0,0.00030136,7]
[370309659,1751946645725,-1442.42,0.00030136,7]
[370309660,1751946645734,-460.0,0.00030136,7]
[370309661,1751946645744,-460.0,0.00030136,7]
[370309662,1751946645753,-526.39,0.00030136,7]
[370309663,1751946645762,-500.0,0.00030136,7]
[370309664,1751946645772,-500.0,0.00030136,7]
[370309665,1751946645782,-460.0,0.00030136,7]
[370309666,1751946645792,-490.0,0.00030136,7]
[370309667,1751946645802,-460.0,0.00030136,7]
[370309668,1751946645811,-1011.27,0.00030136,7]
[370309669,1751946645821,-460.0,0.00030136,7]
[370309670,1751946645830,-1011.27,0.00030136,7]
[370309671,1751946645839,-460.0,0.00030136,7]
[370309672,1751946645849,-460.0,0.00030136,7]
[370309673,1751946645859,-460.0,0.00030136,7]
[370309674,1751946645869,-490.0,0.00030136,7]
[370309675,1751946645880,-490.0,0.00030136,7]
[370309676,1751946645889,-460.0,0.00030136,7]
[370309677,1751946645899,-2381.39,0.00030136,7]
[370309678,1751946645909,-490.0,0.00030136,7]
[370309679,1751946645918,-2727.77,0.00030136,7]
[370309680,1751946645928,-834.04,0.00030136,7]
[370309681,1751946645937,-460.0,0.00030136,7]
[370309682,1751946645947,-573.52,0.00030136,7]
[370309683,1751946645956,-460.0,0.00030136,7]
[370309684,1751946645965,-490.0,0.00030136,7]
[370309685,1751946645975,-460.0,0.00030136,7]
[370309686,1751946645985,-460.0,0.00030136,7]
[370309687,1751946645995,-775.51,0.00030136,7]
[370309688,1751946646004,-460.0,0.00030136,7]
[370309689,1751946646013,-668.83,0.00030136,7]
[370309690,1751946646023,-490.0,0.00030136,7]
[370309691,1751946646033,-704.63,0.00030136,7]
[370309692,1751946646043,-500.0,0.00030136,7]
[370309693,1751946646053,-490.0,0.00030136,7]
[370309694,1751946646062,-490.0,0.00030136,7]
[370309695,1751946646071,-460.0,0.00030136,7]
[370309696,1751946646081,-788.72,0.00030136,7]
[370309697,1751946646093,-460.0,0.00030136,7]
[370309698,1751946646102,-460.0,0.00030136,7]
[370309699,1751946646112,-490.0,0.00030136,7]
[370309700,1751946646122,-460.0,0.00030136,7]
[370309701,1751946646131,-614.68,0.00030136,7]
[370309702,1751946646140,-208.05397715,0.00030136,7]
[370309703,1751946646438,-364.66602285,0.00030136,7]
[370309704,1751946646448,-460.0,0.00030136,7]
[370309705,1751946646458,-661.2,0.00030136,7]
[370309706,1751946646467,-500.0,0.00030136,7]
[370309707,1751946646477,-574.50134811,0.00030136,7]
[370309708,1751946647310,-269.53368872,0.0002127,2]
[370309709,1751946647320,-10.46631128,0.00030136,7]
[370309710,1751946647332,-289.02788552,0.00030136,7]
[370309711,1751946647347,-124.25445509,0.00030136,7]
[370309712,1751946647356,-439.09006899,0.00030136,7]
[370309713,1751946647376,-20.90993101,0.00030136,7]
[370309714,1751946647386,-597.0,0.00030136,7]
[370309715,1751946647396,-648.13,0.00030136,7]
[370309716,1751946647406,-144.46185828,0.00030136,7]
[370309717,1751946647491,-345.53814172,0.00030136,7]
[370309718,1751946647501,-164.46483288,0.00030136,7]
[370309719,1751946647601,-295.53516712,0.00030136,7]
[370309720,1751946647611,-516.36481788,0.00030136,7]
[370309721,1751946647623,-145.84518212,0.00030136,7]
[370309722,1751946647633,-336.79481888,0.00030136,7]
[370309723,1751946647730,-269.53368872,0.00022952,2]
[370309724,1751946647742,-204.01518112,0.00030136,7]
[370309725,1751946647752,-460.0,0.00030136,7]
[370309726,1751946647762,-31.46738803,0.00030136,7]
[370309727,1751946647776,-458.53261197,0.00030136,7]
[370309728,1751946647786,-460.0,0.00030136,7]
[370309729,1751946647796,-6.02635973,0.00030136,7]
[370309730,1751946647808,-483.97364027,0.00030136,7]
[370309731,1751946647818,-256.69949211,0.00030136,7]
[370309732,1751946647863,-203.30050789,0.00030136,7]
[370309733,1751946647873,-460.0,0.00030136,7]
[370309734,1751946647883,-735.42732767,0.00030137,2]
[370309735,1751946647892,-360.8,0.00030164,30]
[370309736,1751946647902,-500.0,0.00030173,5]